fUSD/lending_fUSD_20240301
["ID","MTS","AMOUNT","RATE_DAILY","PERIOD"]
[316011015,1709325073902,-461.74834463,0.00022246,2]
[316011016,1709325073912,-500.0,0.00022246,2]
[316011017,1709325073922,-500.0,0.00022246,2]
[316011018,1709325073931,-150.0,0.00022246,2]
[316011019,1709325073942,-500.0,0.00022246,2]
[316011020,1709325073951,-500.0,0.00022246,2]
[316011021,1709325073961,-1494.08,0.00022246,2]
[316011022,1709325073971,-2000.0,0.00022246,2]
[316011023,1709325073990,-500.0,0.00022246,2]
[316011024,1709325074011,-500.0,0.00022246,2]
[316011025,1709325074030,-151.0,0.00022246,2]
[316011026,1709325074050,-200.0,0.00022246,2]
[316011027,1709325074067,-500.0,0.00022246,2]
[316011028,1709325074085,-500.0,0.00022246,2]
[316011029,1709325074104,-500.0,0.00022246,2]
[316011030,1709325074124,-500.0,0.00022246,2]
[316011031,1709325074143,-500.0,0.00022246,2]
[316011032,1709325074161,-500.0,0.00022246,2]
[316011033,1709325074184,-500.0,0.00022246,2]
[316011034,1709325074206,-500.0,0.00022246,2]
[316011035,1709325074220,-500.0,0.00022246,2]
[316011036,1709325074238,-500.0,0.00022246,2]
[316011037,1709325074255,-500.0,0.00022246,2]
[316011038,1709325074271,-500.0,0.00022246,2]
[316011039,1709325074287,-500.0,0.00022246,2]
[316011040,1709325074303,-500.0,0.00022246,2]
[316011041,1709325074318,-500.0,0.00022246,2]
[316011042,1709325074335,-500.0,0.00022246,2]
[316011043,1709325074350,-500.0,0.00022246,2]
[316011044,1709325074366,-500.0,0.00022246,2]
[316011045,1709325074382,-500.0,0.00022246,2]
[316011046,1709325074399,-1095.13,0.00022246,2]
[316011047,1709325074414,-500.0,0.00022246,2]
[316011048,1709325074429,-500.0,0.00022246,2]
[316011049,1709325074446,-500.0,0.00022246,2]
[316011050,1709325074462,-500.0,0.00022246,2]
[316011051,1709325074478,-500.0,0.00022246,2]
[316011052,1709325074493,-500.0,0.00022246,2]
[316011053,1709325074509,-500.0,0.00022246,2]
[316011054,1709325074524,-576.13,0.00022246,2]
[316011055,1709325074539,-793.28,0.00022246,2]
[316011056,1709325074555,-649.5,0.00022246,2]
[316011057,1709325074574,-500.0,0.00022246,2]
[316011058,1709325074590,-500.0,0.00022246,2]
[316011059,1709325074606,-500.0,0.00022246,2]
[316011060,1709325074621,-500.0,0.00022246,2]
[316011061,1709325074636,-500.0,0.00022246,2]
[316011062,1709325074652,-807.39,0.00022246,2]
[316011063,1709325074666,-777.74,0.00022246,2]
[316011064,1709325074682,-500.0,0.00022246,2]
[316011065,1709325074702,-500.0,0.00022246,2]
[316011066,1709325074717,-5832.94,0.00022246,2]
[316011067,1709325074732,-500.0,0.00022246,2]
[316011068,1709325074748,-2556.17,0.00022246,2]
[316011069,1709325074763,-500.0,0.00022246,2]
[316011070,1709325074778,-500.0,0.00022246,2]
[316011071,1709325074794,-500.0,0.00022246,2]
[316011072,1709325074809,-500.0,0.00022246,2]
[316011073,1709325074830,-500.0,0.00022246,2]
[316011074,1709325074846,-500.0,0.00022246,2]
[316011075,1709325074861,-630.96,0.00022246,2]
[316011076,1709325074877,-500.0,0.00022246,2]
[316011077,1709325074893,-500.0,0.00022246,2]
[316011078,1709325074909,-500.0,0.00022246,2]
[316011079,1709325074925,-500.0,0.00022246,2]
[316011080,1709325074943,-2541.7,0.00022246,2]
[316011081,1709325074960,-717.66,0.00022246,2]
[316011082,1709325074976,-500.0,0.00022246,2]
[316011083,1709325074993,-1190.85,0.00022246,2]
[316011084,1709325075012,-500.0,0.00022246,2]
[316011085,1709325075027,-500.0,0.00022246,2]
[316011086,1709325075043,-1257.43,0.00022246,2]
[316011087,1709325075059,-500.0,0.00022246,2]
[316011088,1709325075075,-1933.92,0.00022246,2]
[316011089,1709325075091,-500.0,0.00022246,2]
[316011090,1709325075106,-500.0,0.00022246,2]
[316011091,1709325075122,-500.0,0.00022246,2]
[316011092,1709325075137,-6685.34,0.00022246,2]
[316011093,1709325075153,-500.0,0.00022246,2]
[316011094,1709325075169,-798.45,0.00022246,2]
[316011095,1709325075185,-500.0,0.00022246,2]
[316011096,1709325075204,-500.0,0.00022246,2]
[316011097,1709325075221,-388.1606641,0.00022246,2]
[316011098,1709325075236,-833.2,0.00022246,2]
[316011099,1709325075251,-500.0,0.00022246,2]
[316011100,1709325075268,-500.0,0.00022246,2]
[316011101,1709325075285,-13127.88,0.00022246,2]
[316011102,1709325075301,-4843.16,0.00022246,2]
[316011103,1709325075316,-739.55,0.00022246,2]
[316011104,1709325075331,-500.0,0.00022246,2]
[316011105,1709325075347,-870.9,0.00022246,2]
[316011106,1709325075363,-538.5222038,0.00022246,2]
[316011107,1709325075379,-21180.03,0.00022246,2]
[316011108,1709325075394,-2351.69,0.00022246,2]
[316011109,1709325075409,-634.71249615,0.00022246,2]
[316011110,1709325075424,-500.0,0.00022246,2]
[316011111,1709325075440,-500.0,0.00022246,2]
[316011112,1709325075456,-23347.63,0.00022246,2]
[316011113,1709325075643,-500.0,0.00022246,2]
[316011114,1709325075658,-4956.68,0.00022246,2]
[316011115,1709325075668,-500.0,0.00022246,2]
[316011116,1709325075678,-500.0,0.00022246,2]
[316011117,1709325075688,-1558.45,0.00022246,2]
[316011118,1709325075698,-500.0,0.00022246,2]
[316011119,1709325075708,-3125.66,0.00022246,2]
[316011120,1709325075718,-500.0,0.00022246,2]
[316011121,1709325075727,-667.12,0.00022246,2]
[316011122,1709325075738,-2738.18,0.00022246,2]
[316011123,1709325075749,-500.0,0.00022246,2]
[316011124,1709325075759,-500.0,0.00022246,2]
[316011125,1709325075769,-500.0,0.00022246,2]
[316011126,1709325075779,-500.0,0.00022246,2]
[316011127,1709325075789,-500.0,0.00022246,2]
[316011128,1709325075800,-833.39,0.00022246,2]
[316011129,1709325075809,-500.0,0.00022246,2]
[316011130,1709325075819,-2229.45,0.00022246,2]
[316011131,1709325075828,-610.29,0.00022246,2]
[316011132,1709325075838,-1678.54,0.00022246,2]
[316011133,1709325075847,-2098.48,0.00022246,2]
[316011134,1709325075857,-503.81,0.00022246,2]
[316011135,1709325075867,-500.0,0.00022246,2]
[316011136,1709325075877,-786.34,0.00022246,2]
[316011137,1709325075887,-500.0,0.00022246,2]
[316011138,1709325075896,-1899.02,0.00022246,2]
[316011139,1709325075907,-2418.44,0.00022246,2]
[316011140,1709325075916,-500.0,0.00022246,2]
[316011141,1709325075926,-22491.46,0.00022246,2]
[316011142,1709325075938,-1323.61,0.00022246,2]
[316011143,1709325075948,-500.0,0.00022246,2]
[316011144,1709325075958,-457.05620129,0.00022246,2]
[316011145,1709325075968,-983.93,0.00022246,2]
[316011146,1709325075978,-1814.42,0.00022246,2]
[316011147,1709325075994,-177.61693235,0.00022246,2]
[316011148,1709325076004,-500.0,0.00022246,2]
[316011149,1709325076013,-1115.97,0.00022246,2]
[316011150,1709325076022,-1675.44,0.00022246,2]
[316011151,1709325076033,-767.44,0.00022246,2]
[316011152,1709325076042,-500.0,0.00022246,2]
[316011153,1709325076052,-500.0,0.00022246,2]
[316011154,1709325076064,-896.73,0.00022246,2]
[316011155,1709325076074,-500.0,0.00022246,2]
[316011156,1709325076086,-802.5,0.00022246,2]
[316011157,1709325076096,-500.0,0.00022246,2]
[316011158,1709325076107,-1440.38,0.00022246,2]
[316011159,1709325076117,-500.0,0.00022246,2]
[316011160,1709325076128,-1523.08,0.00022246,2]
[316011161,1709325076138,-503.18,0.00022246,2]
[316011162,1709325076148,-1165.62,0.00022246,2]
[316011163,1709325076158,-500.0,0.00022246,2]
[316011164,1709325076168,-601.85,0.00022246,2]
[316011165,1709325076178,-1246.8,0.00022246,2]
[316011166,1709325076189,-539.77,0.00022246,2]
[316011167,1709325076199,-1621.23,0.00022246,2]
[316011168,1709325076209,-1237.56,0.00022246,2]
[316011169,1709325076219,-500.0,0.00022246,2]
[316011170,1709325076229,-1145.09,0.00022246,2]
[316011171,1709325076239,-500.0,0.00022246,2]
[316011172,1709325076249,-3124.61,0.00022246,2]
[316011173,1709325076260,-500.0,0.00022246,2]
[316011174,1709325076270,-604.71806245,0.00022246,2]
[316011175,1709325076281,-151.0,0.00022246,7]
[316011176,1709325076291,-500.0,0.00022246,2]
[316011177,1709325076301,-1329.17,0.00022246,2]
[316011178,1709325076311,-1000.45,0.00022246,2]
[316011179,1709325076321,-500.0,0.00022246,2]
[316011180,1709325076330,-3328.11,0.00022246,2]
[316011181,1709325076340,-500.0,0.00022246,2]
[316011182,1709325076350,-1846.84,0.00022246,2]
[316011183,1709325076361,-1629.87,0.00022246,2]
[316011184,1709325076370,-500.0,0.00022246,2]
[316011185,1709325076380,-500.0,0.00022246,2]
[316011186,1709325076389,-1049.82,0.00022246,2]
[316011187,1709325076399,-1099.37,0.00022246,2]
[316011188,1709325076409,-502.73,0.00022246,2]
[316011189,1709325076420,-500.0,0.00022246,2]
[316011190,1709325076430,-500.0,0.00022246,2]
[316011191,1709325076440,-530.71,0.00022246,2]
[316011192,1709325076449,-841.32,0.00022246,2]
[316011193,1709325076459,-2334.83,0.00022246,2]
[316011194,1709325076469,-668.88,0.00022246,2]
[316011195,1709325076479,-796.92,0.00022246,2]
[316011196,1709325076490,-500.0,0.00022246,2]
[316011197,1709325076499,-531.12,0.00022246,2]
[316011198,1709325076509,-816.07,0.00022246,2]
[316011199,1709325076519,-897.19,0.00022246,2]
[316011200,1709325076529,-500.0,0.00022246,2]
[316011201,1709325076539,-3575.44,0.00022246,2]
[316011202,1709325076549,-500.0,0.00022246,2]
[316011203,1709325076559,-1761.64,0.00022246,2]
[316011204,1709325076569,-500.0,0.00022246,2]
[316011205,1709325076580,-500.0,0.00022246,2]
[316011206,1709325076590,-1692.3,0.00022246,2]
[316011207,1709325076600,-500.0,0.00022246,2]
[316011208,1709325076610,-500.0,0.00022246,2]
[316011209,1709325076620,-574.12030299,0.00022246,2]
[316011210,1709325076630,-628.25,0.00022246,2]
[316011211,1709325076640,-500.0,0.00022246,2]
[316011212,1709325076650,-1144.26,0.00022246,2]
[316011213,1709325076660,-1413.89,0.00022246,2]
[316011214,1709325076670,-1309.85,0.00022246,2]
[316011215,1709325076680,-2454.74,0.00022246,2]
[316011216,1709325076690,-500.0,0.00022246,2]
[316011217,1709325076700,-500.0,0.00022246,2]
[316011218,1709325076710,-1110.9,0.00022246,2]
[316011219,1709325076721,-500.0,0.00022246,2]
[316011220,1709325076731,-541.55,0.00022246,2]
[316011221,1709325076740,-618.94551352,0.00022246,2]
[316011222,1709325076750,-697.92,0.00022246,2]
[316011223,1709325076760,-2314.14,0.00022246,2]
[316011224,1709325076769,-689.43,0.00022246,2]
[316011225,1709325076779,-898.59,0.00022246,2]
[316011226,1709325076789,-705.17,0.00022246,2]
[316011227,1709325076799,-547.49,0.00022246,2]
[316011228,1709325076809,-1018.24,0.00022246,2]
[316011229,1709325076818,-500.0,0.00022246,2]
[316011230,1709325076828,-645.07,0.00022246,2]
[316011231,1709325076838,-1138.84,0.00022246,2]
[316011232,1709325076847,-13496.9,0.00022246,2]
[316011233,1709325076857,-500.0,0.00022246,2]
[316011234,1709325076866,-500.0,0.00022246,2]
[316011235,1709325076876,-1245.99,0.00022246,2]
[316011236,1709325076886,-771.59,0.00022246,2]
[316011237,1709325076895,-4551.14,0.00022246,2]
[316011238,1709325076905,-2194.49,0.00022246,2]
[316011239,1709325076914,-1300.41,0.00022246,2]
[316011240,1709325076924,-500.0,0.00022246,2]
[316011241,1709325076933,-858.27,0.00022246,2]
[316011242,1709325076944,-500.0,0.00022246,2]
[316011243,1709325076954,-1006.76,0.00022246,2]
[316011244,1709325076963,-797.83,0.00022246,2]
[316011245,1709325076973,-648.54,0.00022246,2]
[316011246,1709325076983,-500.0,0.00022246,2]
[316011247,1709325076993,-3937.49,0.00022246,2]
[316011248,1709325077004,-1738.03,0.00022246,2]
[316011249,1709325077014,-1746.33,0.00022246,2]
[316011250,1709325077024,-1501.28,0.00022246,2]
[316011251,1709325077034,-822.79,0.00022246,2]
[316011252,1709325077044,-2615.6,0.00022246,2]
[316011253,1709325077053,-500.0,0.00022246,2]
[316011254,1709325077063,-909.65,0.00022246,2]
[316011255,1709325077072,-500.0,0.00022246,2]
[316011256,1709325077082,-500.0,0.00022246,2]
[316011257,1709325077092,-1731.17,0.00022246,2]
[316011258,1709325077102,-500.0,0.00022246,2]
[316011259,1709325077112,-1095.16,0.00022246,2]
[316011260,1709325077121,-3436.44,0.00022246,2]
[316011261,1709325077131,-796.3,0.00022246,2]
[316011262,1709325077140,-500.0,0.00022246,2]
[316011263,1709325077150,-500.0,0.00022246,2]
[316011264,1709325077160,-605.08,0.00022246,2]
[316011265,1709325077171,-695.81,0.00022246,2]
[316011266,1709325077181,-1719.11,0.00022246,2]
[316011267,1709325077193,-1649.56,0.00022246,2]
[316011268,1709325077204,-500.0,0.00022246,2]
[316011269,1709325077215,-695.1,0.00022246,2]
[316011270,1709325077226,-1849.33,0.00022246,2]
[316011271,1709325077237,-500.0,0.00022246,2]
[316011272,1709325077248,-500.0,0.00022246,2]
[316011273,1709325077258,-500.0,0.00022246,2]
[316011274,1709325077269,-596.04,0.00022246,2]
[316011275,1709325077282,-802.09,0.00022246,2]
[316011276,1709325077292,-914.91,0.00022246,2]
[316011277,1709325077302,-1408.66,0.00022246,2]
[316011278,1709325077312,-500.0,0.00022246,2]
[316011279,1709325077322,-1096.97,0.00022246,2]
[316011280,1709325077332,-500.0,0.00022246,2]
[316011281,1709325077343,-3156.86,0.00022246,2]
[316011282,1709325077354,-500.0,0.00022246,2]
[316011283,1709325077365,-2515.07,0.00022246,2]
[316011284,1709325077376,-205.004529,0.00022246,7]
[316011285,1709325077386,-500.0,0.00022246,2]
[316011286,1709325077396,-500.0,0.00022246,2]
[316011287,1709325077406,-500.0,0.00022246,2]
[316011288,1709325077417,-500.0,0.00022246,2]
[316011289,1709325077427,-576.12,0.00022246,2]
[316011290,1709325077437,-1405.35,0.00022246,2]
[316011291,1709325077452,-205.004529,0.00022246,7]
[316011292,1709325077462,-500.0,0.00022246,2]
[316011293,1709325077473,-500.0,0.00022246,2]
[316011294,1709325077483,-571.01,0.00022246,2]
[316011295,1709325077495,-829.65,0.00022246,2]
[316011296,1709325077505,-1280.88,0.00022246,2]
[316011297,1709325077514,-500.0,0.00022246,2]
[316011298,1709325077524,-2102.13,0.00022246,2]
[316011299,1709325077534,-1130.38,0.00022246,2]
[316011300,1709325077544,-4965.87,0.00022246,2]
[316011301,1709325077554,-500.0,0.00022246,2]
[316011302,1709325077563,-9922.92,0.00022246,2]
[316011303,1709325077574,-500.0,0.00022246,2]
[316011304,1709325077584,-520.32,0.00022246,2]
[316011305,1709325077594,-500.0,0.00022246,2]
[316011306,1709325077604,-500.0,0.00022246,2]
[316011307,1709325077614,-798.06,0.00022246,2]
[316011308,1709325077624,-500.0,0.00022246,2]
[316011309,1709325077635,-500.0,0.00022246,2]
[316011310,1709325077645,-730.32,0.00022246,2]
[316011311,1709325077655,-500.0,0.00022246,2]
[316011312,1709325077666,-3463.0,0.00022246,2]
[316011313,1709325077676,-500.0,0.00022246,2]
[316011314,1709325077686,-500.0,0.00022246,2]
[316011315,1709325077698,-1879.42,0.00022246,2]
[316011316,1709325077709,-500.0,0.00022246,2]
[316011317,1709325077718,-928.45,0.00022246,2]
[316011318,1709325077727,-500.0,0.00022246,2]
[316011319,1709325077737,-5669.44,0.00022246,2]
[316011320,1709325077747,-1230.85,0.00022246,2]
[316011321,1709325077757,-500.0,0.00022246,2]
[316011322,1709325077767,-2980.76,0.00022246,2]
[316011323,1709325077776,-500.0,0.00022246,2]
[316011324,1709325077786,-1281.68,0.00022246,2]
[316011325,1709325077795,-500.0,0.00022246,2]
[316011326,1709325077804,-500.0,0.00022246,2]
[316011327,1709325077814,-500.0,0.00022246,2]
[316011328,1709325077823,-791.17,0.00022246,2]
[316011329,1709325077833,-8137.03,0.00022246,2]
[316011330,1709325077843,-5463.14,0.00022246,2]
[316011331,1709325077853,-500.0,0.00022246,2]
[316011332,1709325077863,-726.54,0.00022246,2]
[316011333,1709325077873,-9818.2,0.00022246,2]
[316011334,1709325077883,-500.0,0.00022246,2]
[316011335,1709325077894,-988.29,0.00022246,2]
[316011336,1709325077904,-500.0,0.00022246,2]
[316011337,1709325077915,-500.0,0.00022246,2]
[316011338,1709325077925,-500.0,0.00022246,2]
[316011339,1709325077935,-500.0,0.00022246,2]
[316011340,1709325077947,-983.46,0.00022246,2]
[316011341,1709325077957,-526.18847654,0.00022246,2]
[316011342,1709325077967,-500.0,0.00022246,2]
[316011343,1709325077976,-648.05617928,0.00022246,2]
[316011344,1709325077987,-2607.72,0.00022246,2]
[316011345,1709325077997,-12050.28,0.00022246,2]
[316011346,1709325078008,-500.0,0.00022246,2]
[316011347,1709325078020,-1744.39,0.00022246,2]
[316011348,1709325078031,-635.35,0.00022246,2]
[316011349,1709325078041,-7772.36,0.00022246,2]
[316011350,1709325078051,-4384.09,0.00022246,2]
[316011351,1709325078061,-500.0,0.00022246,2]
[316011352,1709325078071,-757.05,0.00022246,2]
[316011353,1709325078082,-500.0,0.00022246,2]
[316011354,1709325078094,-842.18,0.00022246,2]
[316011355,1709325078104,-825.49,0.00022246,2]
[316011356,1709325078114,-500.0,0.00022246,2]
[316011357,1709325078124,-500.0,0.00022246,2]
[316011358,1709325078134,-500.0,0.00022246,2]
[316011359,1709325078144,-1346.15,0.00022246,2]
[316011360,1709325078153,-500.0,0.00022246,2]
[316011361,1709325078164,-1430.59,0.00022246,2]
[316011362,1709325078173,-1119.47,0.00022246,2]
[316011363,1709325078184,-800.0,0.00022255,2]
[316011364,1709325078198,-395.10980458,0.00022264,2]
[316011365,1709325078207,-4360.05709236,0.00022283,2]
[316011366,1709325078218,-194.07007002,0.00022299,2]
[316011367,1709325078228,-200.0,0.000223,2]
[316011368,1709325078237,-101332.18109668,0.000223,4]
[316011369,1709325078247,-151.0,0.000223,2]
[316011370,1709325078257,-1000.0,0.00022308,2]
[316011371,1709325078266,-199.05,0.00022332,2]
[316011372,1709325078276,-156.57,0.00022337,2]
[316011373,1709325078285,-4360.05709236,0.00022345,2]
[316011374,1709325078295,-546.51468864,0.00022354,2]
[316011375,1709325078304,-347.7279917,0.00022355,10]
[316011376,1709325078314,-500.0,0.00022356,2]
[316011377,1709325078324,-500.0,0.00022356,2]
[316011378,1709325078333,-500.0,0.00022356,2]
[316011379,1709325078343,-500.0,0.00022356,2]
[316011380,1709325078353,-500.0,0.00022356,2]
[316011381,1709325078362,-500.0,0.00022356,2]
[316011382,1709325078372,-500.0,0.00022356,2]
[316011383,1709325078382,-500.0,0.00022356,2]
[316011384,1709325078391,-500.0,0.00022356,2]
[316011385,1709325078401,-500.0,0.00022356,2]
[316011386,1709325078411,-500.0,0.00022356,2]
[316011387,1709325078420,-500.0,0.00022356,2]
[316011388,1709325078430,-500.0,0.00022356,2]
[316011389,1709325078441,-500.0,0.00022356,2]
[316011390,1709325078451,-500.0,0.00022356,2]
[316011391,1709325078460,-500.0,0.00022356,2]
[316011392,1709325078471,-500.0,0.00022356,2]
[316011393,1709325078480,-500.0,0.00022356,2]
[316011394,1709325078489,-500.0,0.00022356,2]
[316011395,1709325078499,-500.0,0.00022356,2]
[316011396,1709325078510,-579.47,0.00022356,2]
[316011397,1709325078520,-500.0,0.00022356,2]
[316011398,1709325078529,-500.0,0.00022356,2]
[316011399,1709325078539,-466.4591149,0.00022356,2]
[316011400,1709325078548,-500.0,0.00022356,2]
[316011401,1709325078559,-500.0,0.00022356,2]
[316011402,1709325078569,-500.0,0.00022356,2]
[316011403,1709325078579,-500.0,0.00022356,2]
[316011404,1709325078589,-500.0,0.00022356,2]
[316011405,1709325078599,-500.0,0.00022356,2]
[316011406,1709325078609,-500.0,0.00022356,2]
[316011407,1709325078619,-500.0,0.00022356,2]
[316011408,1709325078629,-500.0,0.00022356,2]
[316011409,1709325078638,-500.0,0.00022356,2]
[316011410,1709325078648,-540.34199626,0.00022356,2]
[316011411,1709325078657,-500.0,0.00022356,2]
[316011412,1709325078667,-500.0,0.00022356,2]
[316011413,1709325078677,-532.27921728,0.00022356,2]
[316011414,1709325078686,-500.0,0.00022356,2]
[316011415,1709325078700,-500.0,0.00022356,2]
[316011416,1709325078709,-500.0,0.00022356,2]
[316011417,1709325078719,-500.0,0.00022356,2]
[316011418,1709325078729,-500.0,0.00022356,2]
[316011419,1709325078738,-500.0,0.00022356,2]
[316011420,1709325078748,-500.0,0.00022356,2]
[316011421,1709325078757,-500.0,0.00022356,2]
[316011422,1709325078767,-500.0,0.00022356,2]
[316011423,1709325078777,-500.0,0.00022356,2]
[316011424,1709325078786,-500.0,0.00022356,2]
[316011425,1709325078934,-500.0,0.00022356,2]
[316011426,1709325078959,-237.29918514,0.00022356,2]
[316011427,1709325078969,-409.88721473,0.00022356,2]
[316011428,1709325078979,-500.0,0.00022356,2]
[316011429,1709325078989,-500.0,0.00022356,2]
[316011430,1709325078999,-500.0,0.00022356,2]
[316011431,1709325079009,-500.0,0.00022356,2]
[316011432,1709325079019,-500.0,0.00022356,2]
[316011433,1709325079030,-500.0,0.00022356,2]
[316011434,1709325079039,-500.0,0.00022356,2]
[316011435,1709325079049,-500.0,0.00022356,2]
[316011436,1709325079059,-500.0,0.00022356,2]
[316011437,1709325079069,-500.0,0.00022356,2]
[316011438,1709325079079,-500.0,0.00022356,2]
[316011439,1709325079090,-500.0,0.00022356,2]
[316011440,1709325079100,-258.36187762,0.00022356,2]
[316011441,1709325079110,-500.0,0.00022356,2]
[316011442,1709325079119,-500.0,0.00022356,2]
[316011443,1709325079129,-500.0,0.00022356,2]
[316011444,1709325079139,-500.0,0.00022356,2]
[316011445,1709325079148,-500.0,0.00022356,2]
[316011446,1709325079157,-1158.81,0.00022356,2]
[316011447,1709325079167,-500.0,0.00022356,2]
[316011448,1709325079178,-500.0,0.00022356,2]
[316011449,1709325079188,-500.0,0.00022356,2]
[316011450,1709325079198,-500.0,0.00022356,2]
[316011451,1709325079208,-515.39290728,0.00022356,2]
[316011452,1709325079218,-500.0,0.00022356,2]
[316011453,1709325079227,-500.0,0.00022356,2]
[316011454,1709325079237,-524.12743381,0.00022356,2]
[316011455,1709325079246,-500.0,0.00022356,2]
[316011456,1709325079256,-500.0,0.00022356,2]
[316011457,1709325079266,-510.02,0.00022356,2]
[316011458,1709325079275,-500.0,0.00022356,2]
[316011459,1709325079285,-500.0,0.00022356,2]
[316011460,1709325079295,-500.0,0.00022356,2]
[316011461,1709325079304,-500.0,0.00022356,2]
[316011462,1709325079314,-500.0,0.00022356,2]
[316011463,1709325079324,-500.0,0.00022356,2]
[316011464,1709325079334,-500.0,0.00022356,2]
[316011465,1709325079343,-500.0,0.00022356,2]
[316011466,1709325079353,-500.0,0.00022356,2]
[316011467,1709325079363,-500.0,0.00022356,2]
[316011468,1709325079373,-500.0,0.00022356,2]
[316011469,1709325079384,-500.0,0.00022356,2]
[316011470,1709325079393,-500.0,0.00022356,2]
[316011471,1709325079403,-500.0,0.00022356,2]
[316011472,1709325079412,-500.0,0.00022356,2]
[316011473,1709325079422,-500.0,0.00022356,2]
[316011474,1709325079431,-500.0,0.00022356,2]
[316011475,1709325079441,-500.0,0.00022356,2]
[316011476,1709325079451,-582.8,0.00022356,2]
[316011477,1709325079460,-500.0,0.00022356,2]
[316011478,1709325079470,-1096.14,0.00022356,2]
[316011479,1709325079479,-500.0,0.00022356,2]
[316011480,1709325079488,-500.0,0.00022356,2]
[316011481,1709325079498,-500.0,0.00022356,2]
[316011482,1709325079508,-500.0,0.00022356,2]
[316011483,1709325079517,-500.0,0.00022356,2]
[316011484,1709325079527,-1058.72,0.00022356,2]
[316011485,1709325079537,-1249.03,0.00022356,2]
[316011486,1709325079547,-500.0,0.00022356,2]
[316011487,1709325079557,-1276.8,0.00022356,2]
[316011488,1709325079567,-500.0,0.00022356,2]
[316011489,1709325079577,-936.62,0.00022356,2]
[316011490,1709325079587,-500.0,0.00022356,2]
[316011491,1709325079597,-611.3,0.00022356,2]
[316011492,1709325079607,-500.0,0.00022356,2]
[316011493,1709325079616,-757.45,0.00022356,2]
[316011494,1709325079626,-500.0,0.00022356,2]
[316011495,1709325079636,-500.0,0.00022356,2]
[316011496,1709325079646,-500.0,0.00022356,2]
[316011497,1709325079656,-1137.5,0.00022356,2]
[316011498,1709325079667,-500.0,0.00022356,2]
[316011499,1709325079677,-1015.22,0.00022356,2]
[316011500,1709325079688,-660.66,0.00022356,2]
[316011501,1709325079698,-1087.44,0.00022356,2]
[316011502,1709325079708,-721.12,0.00022356,2]
[316011503,1709325079718,-500.0,0.00022356,2]
[316011504,1709325079727,-500.0,0.00022356,2]
[316011505,1709325079737,-772.6,0.00022356,2]
[316011506,1709325079747,-681.29,0.00022356,2]
[316011507,1709325079757,-803.95,0.00022356,2]
[316011508,1709325079767,-500.0,0.00022356,2]
[316011509,1709325079776,-500.0,0.00022356,2]
[316011510,1709325079786,-500.0,0.00022356,2]
[316011511,1709325079796,-500.0,0.00022356,2]
[316011512,1709325079805,-500.0,0.00022356,2]
[316011513,1709325079814,-500.0,0.00022356,2]
[316011514,1709325079824,-500.0,0.00022356,2]